[Event "The Kvibergspelen 2024"]
[Site "Kviberg Park Hotel & Conference, Krutvagen 2, Gothenburg, Sweden"]
[Date "2024.09.08"]
[Round "7.1"]
[White "Lindberg, Bengt"]
[Black "Kucuksari, Kaan"]
[Result "1/2-1/2"]
[TimeControl "15 minutes + 5 seconds per move from move one (Round 1 - 4) / 90 minutes + 30 seconds per move from move one (Round 5 - 8)"]
[WhiteTitle "IM"]
[BlackTitle "IM"]
[WhiteFideId "1700359"]
[BlackFideId "6380166"]
[WhiteElo "2337"]
[BlackElo "2455"]

1. e4 {[%clk 01:30:54]} {[%emt 00:00:05]} c5 {[%clk 01:30:56]} {[%emt
00:00:05]} 2. Nf3 {[%clk 01:31:13]} {[%emt 00:00:10]} d6 {[%clk 01:31:22]}
{[%emt 00:00:06]} 3. d4 {[%clk 01:31:33]} {[%emt 00:00:09]} cxd4 {[%clk
01:31:48]} {[%emt 00:00:06]} 4. Nxd4 {[%clk 01:31:54]} {[%emt 00:00:07]} Nf6
{[%clk 01:32:11]} {[%emt 00:00:07]} 5. Nc3 {[%clk 01:32:14]} {[%emt 00:00:10]}
a6 {[%clk 01:32:37]} {[%emt 00:00:05]} 6. Be3 {[%clk 01:32:18]} {[%emt
00:00:24]} Ng4 {[%clk 01:33:00]} {[%emt 00:00:08]} 7. Bg5 {[%clk 01:31:26]}
{[%emt 00:01:21]} h6 {[%clk 01:33:25]} {[%emt 00:00:06]} 8. Bc1 {[%clk
01:30:17]} {[%emt 00:01:38]} Nf6 {[%clk 01:33:48]} {[%emt 00:00:08]} 9. Be2
{[%clk 01:27:26]} {[%emt 00:03:21]} e5 {[%clk 01:34:10]} {[%emt 00:00:09]} 10.
Nb3 {[%clk 01:26:31]} {[%emt 00:01:24]} Be7 {[%clk 01:34:32]} {[%emt 00:00:09]}
11. O-O {[%clk 01:26:06]} {[%emt 00:00:53]} O-O {[%clk 01:34:57]} {[%emt
00:00:06]} 12. f4 {[%clk 01:24:28]} {[%emt 00:02:07]} b5 {[%clk 01:31:03]}
{[%emt 00:04:26]} 13. a4 {[%clk 01:14:27]} {[%emt 00:10:31]} b4 {[%clk
01:30:32]} {[%emt 00:01:01]} 14. Nd5 {[%clk 01:09:06]} {[%emt 00:05:49]} Nxd5
{[%clk 01:30:51]} {[%emt 00:00:12]} 15. exd5 {[%clk 01:09:12]} {[%emt
00:00:23]} Qb6+ {[%clk 01:23:05]} {[%emt 00:08:17]} 16. Kh1 {[%clk 01:09:32]}
{[%emt 00:00:09]} a5 {[%clk 01:23:15]} {[%emt 00:00:21]} 17. c4 {[%clk
00:56:19]} {[%emt 00:13:42]} Nd7 {[%clk 01:09:25]} {[%emt 00:14:21]} 18. Qe1
{[%clk 00:55:36]} {[%emt 00:01:12]} Bf6 {[%clk 01:03:56]} {[%emt 00:06:00]} 19.
Bd3 {[%clk 00:50:21]} {[%emt 00:05:44]} Re8 {[%clk 01:02:07]} {[%emt 00:02:20]}
20. Qe4 {[%clk 00:48:11]} {[%emt 00:02:39]} Nf8 {[%clk 01:02:35]} {[%emt
00:00:03]} 21. f5 {[%clk 00:45:50]} {[%emt 00:02:50]} Nh7 {[%clk 00:58:06]}
{[%emt 00:05:00]} 22. Be3 {[%clk 00:42:52]} {[%emt 00:03:27]} Qd8 {[%clk
00:58:25]} {[%emt 00:00:13]} 23. c5 {[%clk 00:33:33]} {[%emt 00:09:49]} Bg5
{[%clk 00:57:01]} {[%emt 00:01:53]} 24. Bb5 {[%clk 00:33:37]} {[%emt 00:00:25]}
Nf6 {[%clk 00:49:49]} {[%emt 00:07:42]} 25. Bxg5 {[%clk 00:29:15]} {[%emt
00:04:52]} Nxe4 {[%clk 00:49:13]} {[%emt 00:01:07]} 26. Bxd8 {[%clk 00:29:41]}
{[%emt 00:00:04]} Rxd8 {[%clk 00:49:39]} {[%emt 00:00:05]} 27. c6 {[%clk
00:28:57]} {[%emt 00:01:13]} Re8 {[%clk 00:46:16]} {[%emt 00:03:52]} 28. Rae1
{[%clk 00:24:11]} {[%emt 00:05:16]} Nf6 {[%clk 00:46:35]} {[%emt 00:00:12]} 29.
Bc4 {[%clk 00:24:36]} {[%emt 00:00:05]} Kf8 {[%clk 00:44:38]} {[%emt 00:02:27]}
30. h3 {[%clk 00:23:16]} {[%emt 00:01:50]} h5 {[%clk 00:42:46]} {[%emt
00:02:23]} 31. g3 {[%clk 00:23:37]} {[%emt 00:00:08]} Re7 {[%clk 00:35:03]}
{[%emt 00:08:14]} 32. Kg2 {[%clk 00:22:33]} {[%emt 00:01:33]} Ke8 {[%clk
00:34:07]} {[%emt 00:01:27]} 33. Nd2 {[%clk 00:21:00]} {[%emt 00:02:02]} Kd8
{[%clk 00:18:57]} {[%emt 00:15:42]} 34. Ne4 {[%clk 00:20:59]} {[%emt 00:00:30]}
Nxe4 {[%clk 00:19:22]} {[%emt 00:00:06]} 35. Rxe4 {[%clk 00:21:24]} {[%emt
00:00:04]} g6 {[%clk 00:18:08]} {[%emt 00:01:44]} 36. fxg6 {[%clk 00:20:40]}
{[%emt 00:01:13]} fxg6 {[%clk 00:18:36]} {[%emt 00:00:03]} 37. g4 {[%clk
00:20:00]} {[%emt 00:01:09]} hxg4 {[%clk 00:17:20]} {[%emt 00:01:46]} 38. hxg4
{[%clk 00:20:28]} {[%emt 00:00:02]} Rg7 {[%clk 00:14:29]} {[%emt 00:03:22]} 39.
Rf8+ {[%clk 00:17:40]} {[%emt 00:03:17]} Ke7 {[%clk 00:14:09]} {[%emt
00:00:51]} 40. Rh8 {[%clk 00:18:02]} {[%emt 00:00:08]} Rf7 {[%clk 00:14:12]}
{[%emt 00:00:27]} 41. Kg3 {[%clk 00:17:10]} {[%emt 00:01:21]} Rf8 {[%clk
00:13:13]} {[%emt 00:01:30]} 42. Rh6 {[%clk 00:10:58]} {[%emt 00:06:41]} Kf6
{[%clk 00:13:34]} {[%emt 00:00:10]} 43. Rh7 {[%clk 00:08:43]} {[%emt 00:02:44]}
Kg5 {[%clk 00:13:57]} {[%emt 00:00:07]} 44. Bd3 {[%clk 00:07:03]} {[%emt
00:02:09]} Rb8 {[%clk 00:05:04]} {[%emt 00:09:25]} 45. b3 {[%clk 00:07:09]}
{[%emt 00:00:24]} Ra8 {[%clk 00:05:33]} {[%emt 00:00:01]} 46. Rh2 {[%clk
00:05:35]} {[%emt 00:02:04]} Rb8 {[%clk 00:05:15]} {[%emt 00:00:48]} 47. Rh1
{[%clk 00:04:31]} {[%emt 00:01:33]} Ra8 {[%clk 00:04:32]} {[%emt 00:01:14]} 48.
Rh7 {[%clk 00:04:51]} {[%emt 00:00:09]} Rb8 {[%clk 00:04:55]} {[%emt 00:00:09]}
49. Ra7 {[%clk 00:04:36]} {[%emt 00:00:44]} Rf4 {[%clk 00:05:22]} {[%emt
00:00:03]} 50. c7 {[%clk 00:04:01]} {[%emt 00:01:04]} Rb7 {[%clk 00:05:45]}
{[%emt 00:00:08]} 51. Rxb7 {[%clk 00:04:23]} {[%emt 00:00:08]} Bxb7 {[%clk
00:03:47]} {[%emt 00:02:28]} 52. Rc4 {[%clk 00:04:20]} {[%emt 00:00:32]} Rxc4
{[%clk 00:01:57]} {[%emt 00:02:21]} 53. Bxc4 {[%clk 00:04:44]} {[%emt
00:00:06]} Kf6 {[%clk 00:00:34]} {[%emt 00:01:53]} 54. Bd3 {[%clk 00:04:42]}
{[%emt 00:00:31]} Kg5 {[%clk 00:00:39]} {[%emt 00:00:26]} 55. Be4 {[%clk
00:03:39]} {[%emt 00:01:32]} Bc8 {[%clk 00:00:58]} {[%emt 00:00:11]} 56. Bf3
{[%clk 00:04:04]} {[%emt 00:00:05]} Bd7 {[%clk 00:01:23]} {[%emt 00:01:06]} 57.
Be4 {[%clk 00:03:37]} {[%emt 00:02:57]} Bc8 {[%clk 00:01:49]} {[%emt 00:00:04]}
58. Bd3 {[%clk 00:03:48]} {[%emt 00:00:19]} Bb7 {[%clk 00:02:04]} {[%emt
00:00:15]} 59. Bb5 {[%clk 00:03:57]} {[%emt 00:00:21]} Bc8 {[%clk 00:02:22]}
{[%emt 00:00:13]} 60. Be8 {[%clk 00:04:20]} {[%emt 00:00:05]} Kf6 {[%clk
00:00:58]} {[%emt 00:01:55]} 61. Kh4 {[%clk 00:04:43]} {[%emt 00:00:06]} g5+
{[%clk 00:00:49]} {[%emt 00:00:40]} 62. Kg3 {[%clk 00:01:49]} {[%emt 00:03:23]}
Ke7 {[%clk 00:00:56]} {[%emt 00:00:24]} 63. Bb5 {[%clk 00:02:11]} {[%emt
00:00:07]} Bb7 {[%clk 00:01:12]} {[%emt 00:00:14]} 64. Kf2 {[%clk 00:02:14]}
{[%emt 00:00:28]} Bc8 {[%clk 00:01:38]} {[%emt 00:00:04]} 65. Kf3 {[%clk
00:02:11]} {[%emt 00:00:32]} Bb7 {[%clk 00:01:46]} {[%emt 00:00:22]} 66. Ke4
{[%clk 00:02:17]} {[%emt 00:00:23]} Bc8 {[%clk 00:02:14]} {[%emt 00:00:04]} 67.
Bc6 {[%clk 00:02:22]} {[%emt 00:00:25]} Kf6 {[%clk 00:00:46]} {[%emt 00:01:57]}
68. Bb5 {[%clk 00:00:48]} {[%emt 00:02:03]} Ke7 {[%clk 00:01:02]} {[%emt
00:00:14]} 69. Kf3 {[%clk 00:00:34]} {[%emt 00:00:45]} Bb7 {[%clk 00:01:04]}
{[%emt 00:00:28]} 70. Ke4 {[%clk 00:00:41]} {[%emt 00:00:23]} 1/2-1/2

[Event "The Kvibergspelen 2024"]
[Site "Kviberg Park Hotel & Conference, Krutvagen 2, Gothenburg, Sweden"]
[Date "2024.09.08"]
[Round "7.2"]
[White "Sorensen, Hampus"]
[Black "Johansson, William"]
[Result "1-0"]
[TimeControl "15 minutes + 5 seconds per move from move one (Round 1 - 4) / 90 minutes + 30 seconds per move from move one (Round 5 - 8)"]
[WhiteTitle "IM"]
[WhiteFideId "8703884"]
[BlackFideId "1744070"]
[WhiteElo "2420"]
[BlackElo "1899"]

1. d4 {[%clk 01:28:25]} {[%emt 00:02:35]} Nf6 {[%clk 01:30:54]} {[%emt
00:00:07]} 2. c4 {[%clk 01:28:41]} {[%emt 00:00:13]} e6 {[%clk 01:31:19]}
{[%emt 00:00:05]} 3. Nc3 {[%clk 01:28:56]} {[%emt 00:00:15]} Bb4 {[%clk
01:31:32]} {[%emt 00:00:17]} 4. e3 {[%clk 01:29:15]} {[%emt 00:00:11]} b6
{[%clk 01:31:47]} {[%emt 00:00:15]} 5. Nge2 {[%clk 01:29:09]} {[%emt 00:00:35]}
Ba6 {[%clk 01:29:48]} {[%emt 00:02:31]} 6. a3 {[%clk 01:26:48]} {[%emt
00:02:51]} Be7 {[%clk 01:29:44]} {[%emt 00:00:33]} 7. Ng3 {[%clk 01:24:39]}
{[%emt 00:02:39]} d5 {[%clk 01:29:27]} {[%emt 00:00:47]} 8. Qf3 {[%clk
01:21:57]} {[%emt 00:03:12]} c6 {[%clk 01:28:02]} {[%emt 00:01:55]} 9. b3
{[%clk 01:18:46]} {[%emt 00:03:41]} h5 {[%clk 01:21:42]} {[%emt 00:06:51]} 10.
Bd3 {[%clk 01:14:20]} {[%emt 00:04:55]} h4 {[%clk 01:20:28]} {[%emt 00:01:45]}
11. Nge2 {[%clk 01:14:36]} {[%emt 00:00:13]} Nbd7 {[%clk 01:14:40]} {[%emt
00:06:17]} 12. Nf4 {[%clk 00:57:52]} {[%emt 00:17:15]} Bb7 {[%clk 00:55:28]}
{[%emt 00:19:42]} 13. Qd1 {[%clk 00:52:47]} {[%emt 00:05:35]} e5 {[%clk
00:48:51]} {[%emt 00:07:07]} 14. dxe5 {[%clk 00:45:13]} {[%emt 00:08:05]} Nxe5
{[%clk 00:49:18]} {[%emt 00:00:03]} 15. cxd5 {[%emt 00:02:53]} g5 {[%clk
00:47:04]} 16. Nfe2 {[%clk 00:41:50]} {[%emt 00:04:13]} h3 {[%clk 00:45:44]}
{[%emt 00:01:51]} 17. gxh3 {[%clk 00:41:49]} {[%emt 00:00:30]} Nf3+ {[%clk
00:34:20]} {[%emt 00:11:54]} 18. Kf1 {[%clk 00:42:17]} {[%emt 00:00:01]} Bc8
{[%clk 00:24:46]} {[%emt 00:10:05]} 19. Ng1 {[%clk 00:38:30]} {[%emt 00:04:18]}
Bxh3+ {[%clk 00:24:37]} {[%emt 00:00:39]} 20. Nxh3 {[%clk 00:38:33]} {[%emt
00:00:26]} Rxh3 {[%clk 00:24:56]} {[%emt 00:00:11]} 21. Bf5 {[%clk 00:34:17]}
{[%emt 00:04:46]} g4 {[%clk 00:25:10]} {[%emt 00:00:16]} 22. Bb2 {[%clk
00:31:42]} {[%emt 00:03:05]} cxd5 {[%clk 00:21:05]} {[%emt 00:04:36]} 23. Nb5
{[%clk 00:25:40]} {[%emt 00:06:32]} Rh5 {[%clk 00:09:43]} {[%emt 00:11:52]} 24.
Qc2 {[%clk 00:22:28]} {[%emt 00:03:42]} Nd2+ {[%clk 00:05:23]} {[%emt
00:04:49]} 25. Ke1 {[%clk 00:15:32]} {[%emt 00:07:27]} Nxb3 {[%clk 00:05:48]}
{[%emt 00:00:04]} 26. Nc7+ {[%clk 00:15:47]} {[%emt 00:00:16]} Kf8 {[%clk
00:06:11]} {[%emt 00:00:06]} 27. Rd1 {[%clk 00:16:12]} {[%emt 00:00:05]} Nc5
{[%clk 00:02:04]} {[%emt 00:04:38]} 28. Nxa8 {[%clk 00:14:27]} {[%emt
00:02:14]} Qxa8 {[%clk 00:02:32]} {[%emt 00:00:02]} 29. Bd4 {[%clk 00:13:40]}
{[%emt 00:01:17]} Qb8 {[%clk 00:02:37]} {[%emt 00:00:25]} 30. Bxf6 {[%clk
00:10:42]} {[%emt 00:03:27]} Bxf6 {[%clk 00:03:02]} {[%emt 00:00:06]} 31. Bxg4
{[%clk 00:10:20]} {[%emt 00:00:52]} Rxh2 {[%clk 00:03:25]} {[%emt 00:00:07]} 32.
Bf3 {[%clk 00:07:45]} {[%emt 00:03:05]} Bh4 {[%clk 00:02:55]} {[%emt 00:01:00]}
33. Kf1 {[%clk 00:05:05]} {[%emt 00:03:11]} Ne4 {[%clk 00:02:04]} {[%emt
00:01:21]} 34. Bxe4 {[%clk 00:04:16]} {[%emt 00:01:19]} dxe4 {[%clk 00:02:28]}
{[%emt 00:00:05]} 35. Rxh2 {[%clk 00:04:08]} {[%emt 00:00:39]} Qxh2 {[%clk
00:02:55]} {[%emt 00:00:02]} 36. Qc8+ {[%clk 00:04:25]} {[%emt 00:00:13]} Kg7
{[%clk 00:03:06]} {[%emt 00:00:20]} 37. Qg4+ {[%clk 00:04:49]} {[%emt
00:00:05]} Kf8 {[%clk 00:03:01]} {[%emt 00:00:35]} 38. Rd2 {[%clk 00:04:57]}
{[%emt 00:00:22]} Qh1+ {[%clk 00:02:34]} {[%emt 00:00:58]} 39. Ke2 {[%clk
00:05:04]} {[%emt 00:00:22]} Be7 {[%clk 00:02:25]} {[%emt 00:00:39]} 40. Rd1
{[%clk 00:03:52]} {[%emt 00:01:42]} Qh7 {[%clk 00:01:46]} {[%emt 00:01:08]} 41.
Qc8+ {[%clk 00:04:04]} {[%emt 00:00:19]} Kg7 {[%clk 00:02:05]} {[%emt
00:00:11]} 42. Rg1+ {[%clk 00:04:27]} {[%emt 00:00:06]} Kf6 {[%clk 00:02:27]}
{[%emt 00:00:09]} 43. Rg4 {[%clk 00:02:14]} {[%emt 00:02:42]} Qh1 {[%clk
00:01:59]} {[%emt 00:00:58]} 44. Qc6+ {[%clk 00:02:08]} {[%emt 00:00:36]} Ke5
{[%clk 00:02:14]} {[%emt 00:00:15]} 45. Qc7+ {[%clk 00:01:32]} {[%emt
00:01:04]} Ke6 {[%clk 00:01:03]} {[%emt 00:01:43]} 46. Qc6+ {[%clk 00:01:32]}
{[%emt 00:00:30]} Ke5 {[%clk 00:01:26]} {[%emt 00:00:07]} 47. Qc7+ {[%clk
00:01:38]} {[%emt 00:00:24]} Ke6 {[%clk 00:01:54]} {[%emt 00:00:01]} 48. Qc4+
{[%clk 00:01:56]} {[%emt 00:00:12]} Kf6 {[%clk 00:00:35]} {[%emt 00:01:50]} 49.
Rf4+ {[%clk 00:02:11]} {[%emt 00:00:15]} Kg5 {[%clk 00:00:34]} {[%emt
00:00:30]} 50. Qxf7 {[%clk 00:02:05]} {[%emt 00:00:36]} 1-0

[Event "The Kvibergspelen 2024"]
[Site "Kviberg Park Hotel & Conference, Krutvagen 2, Gothenburg, Sweden"]
[Date "2024.09.08"]
[Round "7.3"]
[White "Arman, Deniz"]
[Black "Grahn, Vidar"]
[Result "1-0"]
[TimeControl "15 minutes + 5 seconds per move from move one (Round 1 - 4) / 90 minutes + 30 seconds per move from move one (Round 5 - 8)"]
[WhiteTitle "FM"]
[BlackTitle "FM"]
[WhiteFideId "6302106"]
[BlackFideId "1744780"]
[WhiteElo "2348"]
[BlackElo "2219"]

1. e4 {[%clk 01:25:09]} {[%emt 00:05:47]} e5 {[%clk 01:30:54]} {[%emt
00:00:11]} 2. Nf3 {[%clk 01:25:24]} {[%emt 00:00:14]} Nc6 {[%clk 01:31:19]}
{[%emt 00:00:05]} 3. d4 {[%clk 01:19:16]} {[%emt 00:06:38]} exd4 {[%clk
01:31:08]} {[%emt 00:00:42]} 4. Nxd4 {[%clk 01:19:35]} {[%emt 00:00:10]} Nf6
{[%clk 01:31:26]} {[%emt 00:00:12]} 5. Nxc6 {[%clk 01:18:19]} {[%emt 00:01:47]}
bxc6 {[%clk 01:31:50]} {[%emt 00:00:06]} 6. e5 {[%clk 01:17:03]} {[%emt
00:01:45]} Qe7 {[%clk 01:31:55]} {[%emt 00:00:26]} 7. Qe2 {[%clk 01:16:41]}
{[%emt 00:00:51]} Nd5 {[%clk 01:32:07]} {[%emt 00:00:18]} 8. c4 {[%clk
01:15:51]} {[%emt 00:01:20]} Ba6 {[%clk 01:32:25]} {[%emt 00:00:13]} 9. b3
{[%clk 01:15:24]} {[%emt 00:00:57]} g6 {[%clk 01:31:28]} {[%emt 00:01:26]} 10.
Bb2 {[%clk 01:13:03]} {[%emt 00:02:52]} Bg7 {[%clk 01:31:15]} {[%emt 00:00:43]}
11. g3 {[%clk 01:13:13]} {[%emt 00:00:19]} O-O {[%clk 01:27:49]} {[%emt
00:03:56]} 12. Bg2 {[%clk 01:13:09]} {[%emt 00:00:34]} Rae8 {[%clk 01:16:44]}
{[%emt 00:11:35]} 13. O-O {[%clk 01:12:46]} {[%emt 00:00:53]} Bxe5 {[%clk
01:12:17]} {[%emt 00:04:58]} 14. Qxe5 {[%clk 01:12:40]} {[%emt 00:00:35]} Qxe5
{[%clk 01:12:41]} {[%emt 00:00:06]} 15. Bxe5 {[%clk 01:13:06]} {[%emt
00:00:04]} Rxe5 {[%clk 01:13:06]} {[%emt 00:00:06]} 16. cxd5 {[%clk 01:13:32]}
{[%emt 00:00:03]} Bxf1 {[%clk 01:13:28]} {[%emt 00:00:08]} 17. Kxf1 {[%clk
01:13:58]} {[%emt 00:00:04]} cxd5 {[%clk 01:13:44]} {[%emt 00:00:15]} 18. Nc3
{[%clk 01:14:25]} {[%emt 00:00:03]} c6 {[%clk 01:13:57]} {[%emt 00:00:16]} 19.
Ne2 {[%clk 01:12:29]} {[%emt 00:02:26]} Rfe8 {[%clk 01:07:46]} {[%emt
00:06:42]} 20. Bf3 {[%clk 01:11:24]} {[%emt 00:01:34]} g5 {[%clk 01:03:18]}
{[%emt 00:04:59]} 21. Rd1 {[%clk 01:09:14]} {[%emt 00:02:40]} f5 {[%clk
01:01:21]} {[%emt 00:02:28]} 22. h3 {[%clk 01:09:12]} {[%emt 00:00:31]} a6
{[%clk 00:57:34]} {[%emt 00:04:17]} 23. Nc1 {[%clk 01:08:21]} {[%emt 00:01:21]}
d4 {[%clk 00:54:01]} {[%emt 00:04:03]} 24. Be2 {[%clk 01:02:51]} {[%emt
00:05:59]} f4 {[%clk 00:49:20]} {[%emt 00:05:12]} 25. gxf4 {[%clk 01:00:13]}
{[%emt 00:03:09]} gxf4 {[%clk 00:49:22]} {[%emt 00:00:28]} 26. Bg4 {[%clk
01:00:18]} {[%emt 00:00:24]} Rc5 {[%clk 00:43:13]} {[%emt 00:06:38]} 27. Bxd7
{[%clk 00:57:47]} {[%emt 00:03:02]} Re7 {[%emt 00:03:33]} 28. Bg4 {[%clk
00:56:12]} {[%emt 00:01:28]} Rc2 {[%clk 00:38:55]} {[%emt 00:02:21]} 29. Bf5
{[%clk 00:47:06]} {[%emt 00:09:37]} Rc5 {[%clk 00:38:46]} {[%emt 00:00:37]} 30.
Bg4 {[%clk 00:42:23]} {[%emt 00:05:14]} Rc2 {[%clk 00:38:50]} {[%emt 00:00:26]}
31. Be2 {[%clk 00:41:39]} {[%emt 00:01:14]} a5 {[%clk 00:34:32]} {[%emt
00:04:49]} 32. Bd3 {[%clk 00:41:50]} {[%emt 00:00:18]} Rb2 {[%clk 00:33:41]}
{[%emt 00:01:18]} 33. a4 {[%clk 00:41:03]} {[%emt 00:01:21]} f3 {[%clk
00:31:24]} {[%emt 00:02:47]} 34. Bc4+ {[%clk 00:41:06]} {[%emt 00:00:27]} Kg7
{[%clk 00:30:29]} {[%emt 00:01:24]} 35. Nd3 {[%clk 00:23:43]} {[%emt 00:17:54]}
Ra2 {[%clk 00:30:24]} {[%emt 00:00:35]} 36. Nf4 {[%clk 00:24:09]} {[%emt
00:00:05]} Kf6 {[%clk 00:28:58]} {[%emt 00:01:55]} 37. Nh5+ {[%clk 00:24:01]}
{[%emt 00:00:39]} Kg5 {[%clk 00:24:10]} {[%emt 00:05:17]} 38. Ng3 {[%clk
00:24:27]} {[%emt 00:00:04]} c5 {[%clk 00:22:00]} {[%emt 00:02:41]} 39. Bd3
{[%clk 00:24:34]} {[%emt 00:00:23]} Kf4 {[%clk 00:20:45]} {[%emt 00:01:44]} 40.
h4 {[%clk 00:15:32]} {[%emt 00:09:32]} h6 {[%clk 00:17:22]} {[%emt 00:03:54]}
41. Rc1 {[%clk 00:05:28]} {[%emt 00:10:33]} Re5 {[%clk 00:17:13]} {[%emt
00:00:38]} 42. h5 {[%clk 00:01:59]} {[%emt 00:04:01]} Rd2 {[%clk 00:16:10]}
{[%emt 00:01:32]} 43. Bg6 {[%clk 00:02:11]} {[%emt 00:00:18]} d3 {[%emt
00:03:44]} 44. Rc4+ {[%clk 00:00:45]} Kg5 {[%clk 00:14:55]} {[%emt 00:00:27]}
45. Ne4+ {[%clk 00:01:05]} {[%emt 00:00:10]} Rxe4 {[%clk 00:15:20]} {[%emt
00:00:05]} 46. Rxe4 {[%clk 00:01:33]} {[%emt 00:00:02]} Re2 {[%clk 00:12:59]}
{[%emt 00:02:51]} 47. Re3 {[%clk 00:00:41]} {[%emt 00:01:22]} Kf4 {[%clk
00:12:10]} {[%emt 00:01:19]} 48. Bxd3 {[%clk 00:00:46]} {[%emt 00:00:26]} Rd2
{[%clk 00:12:31]} {[%emt 00:00:08]} 49. Bg6 {[%clk 00:00:39]} {[%emt 00:00:38]}
Rd1+ {[%clk 00:12:40]} {[%emt 00:00:21]} 50. Re1 {[%clk 00:01:05]} {[%emt
00:00:03]} Rd4 {[%clk 00:13:03]} {[%emt 00:00:07]} 51. Rc1 {[%clk 00:01:26]}
{[%emt 00:00:08]} 1-0

[Event "The Kvibergspelen 2024"]
[Site "Kviberg Park Hotel & Conference, Krutvagen 2, Gothenburg, Sweden"]
[Date "2024.09.08"]
[Round "7.5"]
[White "Ostlund, Joar"]
[Black "Nord, Alexander"]
[Result "1-0"]
[TimeControl "15 minutes + 5 seconds per move from move one (Round 1 - 4) / 90 minutes + 30 seconds per move from move one (Round 5 - 8)"]
[WhiteTitle "FM"]
[BlackTitle "CM"]
[WhiteFideId "1735020"]
[BlackFideId "1738135"]
[WhiteElo "2335"]
[BlackElo "2209"]

1. d4 {[%clk 01:29:55]} {[%emt 00:01:03]} d5 {[%clk 01:30:54]} {[%emt
00:00:07]} 2. Nf3 {[%clk 01:29:26]} {[%emt 00:00:59]} Nf6 {[%clk 01:31:13]}
{[%emt 00:00:11]} 3. Bf4 {[%clk 01:29:31]} {[%emt 00:00:24]} e6 {[%clk
01:22:47]} {[%emt 00:08:57]} 4. e3 {[%clk 01:29:39]} {[%emt 00:00:21]} c5
{[%clk 01:23:11]} {[%emt 00:00:06]} 5. Nbd2 {[%clk 01:29:06]} {[%emt 00:01:03]}
Nc6 {[%clk 01:23:29]} {[%emt 00:00:13]} 6. c3 {[%clk 01:29:26]} {[%emt
00:00:10]} cxd4 {[%clk 01:23:35]} {[%emt 00:00:25]} 7. exd4 {[%clk 01:29:39]}
{[%emt 00:00:16]} Nh5 {[%clk 01:23:51]} {[%emt 00:00:14]} 8. Be3 {[%clk
01:29:59]} {[%emt 00:00:09]} Bd6 {[%clk 01:24:10]} {[%emt 00:00:12]} 9. Bd3
{[%clk 01:30:05]} {[%emt 00:00:24]} Nf4 {[%clk 01:24:14]} {[%emt 00:00:26]} 10.
Bxf4 {[%clk 01:30:26]} {[%emt 00:00:09]} Bxf4 {[%clk 01:24:43]} {[%emt
00:00:02]} 11. g3 {[%clk 01:30:41]} {[%emt 00:00:14]} Bd6 {[%clk 01:24:37]}
{[%emt 00:00:35]} 12. O-O {[%clk 01:30:25]} {[%emt 00:00:46]} O-O {[%clk
01:23:14]} {[%emt 00:01:54]} 13. Re1 {[%clk 01:30:21]} {[%emt 00:00:34]} Bd7
{[%clk 01:08:07]} {[%emt 00:15:36]} 14. a3 {[%clk 01:23:46]} {[%emt 00:07:05]}
Rc8 {[%clk 00:57:02]} {[%emt 00:11:36]} 15. Rc1 {[%clk 01:16:24]} {[%emt
00:07:52]} Na5 {[%clk 00:44:56]} {[%emt 00:12:34]} 16. Qe2 {[%clk 01:00:30]}
{[%emt 00:16:26]} b5 {[%clk 00:43:22]} {[%emt 00:02:05]} 17. Ne5 {[%clk
00:56:46]} {[%emt 00:04:13]} Nc4 {[%clk 00:37:56]} {[%emt 00:05:56]} 18. Ndf3
{[%clk 00:56:24]} {[%emt 00:00:51]} Be8 {[%clk 00:24:00]} {[%emt 00:14:27]} 19.
Bb1 {[%clk 00:50:54]} {[%emt 00:06:00]} a5 {[%clk 00:23:30]} {[%emt 00:01:00]}
20. h4 {[%clk 00:50:50]} {[%emt 00:00:34]} g6 {[%clk 00:18:14]} {[%emt
00:05:45]} 21. h5 {[%clk 00:46:22]} {[%emt 00:04:58]} b4 {[%clk 00:15:37]}
{[%emt 00:03:08]} 22. axb4 {[%clk 00:42:45]} {[%emt 00:04:06]} axb4 {[%clk
00:16:01]} {[%emt 00:00:07]} 23. hxg6 {[%clk 00:34:25]} {[%emt 00:08:50]} hxg6
{[%clk 00:16:04]} {[%emt 00:00:27]} 24. Kg2 {[%clk 00:34:32]} {[%emt 00:00:23]}
bxc3 {[%clk 00:13:03]} {[%emt 00:03:31]} 25. bxc3 {[%clk 00:34:30]} {[%emt
00:00:32]} Qf6 {[%clk 00:06:32]} {[%emt 00:07:00]} 26. Rh1 {[%clk 00:28:58]}
{[%emt 00:06:03]} Bb5 {[%clk 00:03:48]} {[%emt 00:03:14]} 27. Ng4 {[%clk
00:12:20]} {[%emt 00:17:08]} Qe7 {[%clk 00:03:31]} {[%emt 00:00:47]} 28. Rh4
{[%clk 00:12:06]} {[%emt 00:00:43]} Kg7 {[%clk 00:02:52]} {[%emt 00:01:08]} 29.
Rch1 {[%clk 00:10:37]} {[%emt 00:02:01]} Rh8 {[%clk 00:03:16]} {[%emt
00:00:06]} 30. Qe1 {[%clk 00:10:55]} {[%emt 00:00:12]} Rxh4 {[%clk 00:00:44]}
{[%emt 00:03:02]} 31. Rxh4 {[%clk 00:11:07]} {[%emt 00:00:17]} Rh8 {[%clk
00:01:12]} {[%emt 00:00:03]} 32. Rxh8 {[%clk 00:10:32]} {[%emt 00:01:04]} Kxh8
{[%clk 00:01:41]} {[%emt 00:00:02]} 33. Qh1+ {[%clk 00:10:31]} {[%emt
00:00:32]} Kg8 {[%clk 00:02:01]} {[%emt 00:00:10]} 34. Qh6 {[%clk 00:10:48]}
{[%emt 00:00:12]} f5 {[%clk 00:00:32]} {[%emt 00:01:59]} 35. Qxg6+ {[%clk
00:10:40]} {[%emt 00:00:38]} Kf8 {[%clk 00:01:00]} {[%emt 00:00:03]} 36. Ng5
{[%clk 00:10:35]} {[%emt 00:00:34]} 1-0